bitfinex-derivatives/quotes_ETHF0:USTF0_20240927
["timestamp","ask_amount","ask_price","bid_price","bid_amount"]
[1727457098491,0.3685,2712.7,2712.6,2.88]
[1727457098996,0.3685,2712.8,2712.6,2.88]
[1727457099196,0.3685,2712.8,2712.7,0.3685]
[1727457099391,4.12896,2713.0,2712.6,2.88]
[1727457099392,0.36848,2712.9,2712.6,2.88]
[1727457099601,3.57627,2713.0,2712.8,3.24848]
[1727457099799,0.36847,2713.0,2712.8,3.24848]
[1727457100000,0.36848,2712.9,2712.8,3.24848]
[1727457100609,0.36848,2712.9,2712.8,2.88]
[1727457100909,0.36848,2712.9,2712.8,3.24849]
[1727457101510,0.36848,2712.9,2712.8,2.88]
[1727457101805,0.92117,2713.0,2712.6,3.64231]
[1727457101806,0.3685,2712.7,2712.6,3.64231]
[1727457102198,0.3685,2712.7,2712.6,7.32871]
[1727457102406,0.36849,2712.8,2712.7,0.36849]
[1727457102798,0.36849,2712.8,2712.6,3.64231]
[1727457103000,0.3685,2712.7,2712.6,3.24851]
[1727457103597,0.3685,2712.8,2712.7,0.3685]
[1727457103901,0.3685,2712.8,2712.6,3.24851]
[1727457104404,0.3685,2712.7,2712.6,3.24851]
[1727457108207,0.9212,2712.9,2712.7,0.36849]
[1727457108411,0.3685,2712.8,2712.7,0.36849]
[1727457111205,0.3685,2712.7,2712.6,3.24851]
[1727457111800,0.36852,2712.6,2712.5,3.2078]
[1727457112001,0.36852,2712.6,2712.5,3.57633]
[1727457112699,0.36852,2712.6,2712.5,3.2078]
[1727457113111,0.36852,2712.6,2712.5,3.57633]
[1727457113810,0.36852,2712.6,2712.2,0.93524846]
[1727457113811,0.36856,2712.3,2712.2,0.93524846]
[1727457114009,0.36857,2712.2,2712.1,3.2078]
[1727457114207,0.7959,2712.5,2712.1,7.00926]
[1727457114414,0.36855,2712.4,2712.3,0.36855]
[1727457114613,1.16444,2712.5,2712.4,0.36854]
[1727457115114,1.16444,2712.5,2712.3,0.36855]
[1727457115115,0.36855,2712.4,2712.3,0.36855]
[1727457115318,0.36857,2712.2,2712.1,3.2078]
[1727457115506,0.36858,2712.1,2712.0,0.36859]
[1727457116517,0.92154,2711.9,2711.7,4.14304846]
[1727457116811,0.36862,2711.8,2711.7,3.2078]
[1727457117411,1.31081,2712.0,2711.6,0.36864]
[1727457117412,0.36864,2711.7,2711.6,0.36864]
[1727457118009,0.36867,2711.5,2711.4,0.3661]
[1727457118818,0.36867,2711.5,2711.1,0.93524846]
[1727457118819,0.36868,2711.4,2711.1,0.93524846]
[1727457119014,0.36871,2711.2,2710.8,0.3661]
[1727457119215,0.36871,2711.3,2711.0,0.36873]
[1727457119417,0.3836,2711.4,2711.1,2.88]
[1727457119608,0.3836,2711.4,2711.3,0.36869]
[1727457119816,3.57646,2711.6,2711.3,0.36869]
[1727457120012,0.36867,2711.5,2711.2,0.3687]
[1727457120205,0.751,2711.7,2711.1,3.24871]
[1727457120206,0.36868,2711.4,2711.1,3.24871]
[1727457120411,0.751,2711.7,2711.2,0.36871]
[1727457120611,0.36867,2711.5,2711.2,0.36871]
[1727457120915,0.751,2711.7,2711.1,2.88]
[1727457121112,0.3687,2711.3,2711.0,3.57652]
[1727457121518,4.12944,2711.6,2711.1,0.36872]
[1727457121715,0.36869,2711.4,2711.1,0.36872]
[1727457122012,0.36869,2711.3,2711.1,0.36872]
[1727457122414,4.12944,2711.6,2711.0,3.2078]
[1727457122415,0.36872,2711.1,2711.0,3.2078]
[1727457122606,0.36872,2711.1,2710.8,0.73485]
[1727457123014,0.36872,2711.1,2710.9,0.36875]
[1727457123414,1.31228,2711.2,2710.8,0.3661]
[1727457123623,0.36875,2710.9,2710.8,0.3661]
[1727457123810,0.36875,2710.9,2710.6,3.63068]
[1727457124011,0.3886,2711.1,2710.6,3.24878]
[1727457124224,0.36875,2710.9,2710.7,0.36877]
[1727457124718,0.3688,2710.5,2710.4,3.24881]
[1727457125220,0.3688,2710.5,2710.4,2.88]
[1727457125424,0.3688,2710.6,2710.5,0.3688]
[1727457125619,0.36875,2710.9,2710.7,0.36876]
[1727457125928,0.3886,2711.1,2710.6,2.88]
[1727457126116,0.3886,2711.1,2710.9,0.36874]
[1727457126313,0.75921,2711.2,2711.0,0.36873]
[1727457126515,0.3912,2711.6,2711.1,6.0878]
[1727457126714,1.69126,2711.6,2711.1,6.0878]
[1727457126916,1.13826,2711.6,2711.1,6.0878]
[1727457127117,3.5774,2712.0,2711.6,0.36864]
[1727457127314,4.7156,2712.0,2711.4,3.2078]
[1727457127527,1.1392,2712.0,2711.7,0.36863]
[1727457127822,0.36861,2711.9,2711.6,0.36864]
[1727457128128,0.36866,2711.6,2711.4,3.57647]
[1727457128317,0.36865,2711.7,2711.4,3.2078]
[1727457128617,0.36864,2711.7,2711.4,3.2078]
[1727457129023,0.92154,2711.9,2711.4,3.2078]
[1727457129346,0.36865,2711.7,2711.5,0.36866]
[1727457129530,0.36865,2711.6,2711.4,3.57647]
[1727457129724,0.92154,2711.9,2711.4,3.57647]
[1727457129915,0.36865,2711.7,2711.4,3.57647]
[1727457130114,0.92154,2711.9,2711.4,3.57647]
[1727457130622,0.36865,2711.7,2711.4,3.2078]
[1727457130821,0.36865,2711.6,2711.4,3.57647]
[1727457131023,4.347,2712.0,2711.7,0.36863]
[1727457131415,1.50781,2712.0,2711.8,0.36862]
[1727457131614,1.50781,2712.0,2711.4,3.2078]
[1727457131615,0.36861,2711.9,2711.7,0.36863]
[1727457132415,0.92145,2712.2,2711.5,2.88]
[1727457132618,3.6107,2712.3,2711.8,0.36862]
[1727457132825,0.3686,2712.0,2711.8,0.36862]
[1727457133027,0.36859,2712.1,2711.9,0.36861]
[1727457133328,0.36859,2712.1,2711.4,1.31869]
[1727457133329,0.36853,2712.6,2712.4,0.36854]
[1727457133520,0.36853,2712.6,2712.0,7.00928]
[1727457133521,0.4029,2712.7,2712.2,2.88]
[1727457133731,0.36852,2712.6,2712.4,0.36854]
[1727457133927,0.36847,2713.0,2712.7,0.3685]
[1727457134130,7.3358,2713.2,2712.6,6.0878]
[1727457134131,0.92113,2713.1,2712.6,6.0878]
[1727457134323,0.36847,2713.0,2712.8,0.36848]
[1727457134516,0.36849,2712.8,2712.6,0.36851]
[1727457134722,0.36848,2712.9,2712.6,0.36851]
[1727457134927,2.88,2713.1,2712.5,0.3689]
[1727457135133,0.36852,2712.6,2712.3,3.57634]
[1727457135429,0.75317,2713.0,2712.4,2.88]
[1727457135629,0.75317,2713.0,2712.7,0.36849]
[1727457135828,0.3847,2713.0,2712.4,2.88]
[1727457136021,7.7358,2713.2,2713.1,0.36845]
[1727457136227,3.6078,2713.2,2713.1,0.36845]
[1727457136425,3.2078,2713.2,2713.1,0.36845]
[1727457136730,0.92089,2713.8,2713.1,6.5656]
[1727457136929,0.36843,2713.3,2713.0,0.3656]
[1727457137130,3.80096,2713.6,2713.0,0.73406]
[1727457137331,0.92099,2713.5,2713.0,0.3656]
[1727457137533,0.36844,2713.2,2713.0,0.3656]
[1727457137829,0.36845,2713.1,2712.9,3.2078]
[1727457138029,0.36846,2713.0,2712.9,3.2078]
[1727457138333,0.36848,2712.9,2712.7,0.7669]
[1727457138519,0.3685,2712.8,2712.6,3.6112]
[1727457138732,0.3685,2712.8,2712.6,3.97972]
[1727457138937,0.36848,2712.9,2712.7,0.3685]
[1727457140741,0.3881,2713.1,2712.8,0.36849]
[1727457141049,0.36847,2713.0,2712.8,0.36849]
[1727457141231,0.36845,2713.2,2713.0,0.36846]
[1727457141428,0.7826,2713.3,2713.2,0.36843]
[1727457141429,0.3828,2713.3,2713.2,0.36843]
[1727457141636,0.7813,2713.7,2712.9,6.0878]
[1727457141836,0.36839,2713.6,2713.5,0.36839]
[1727457142040,0.36839,2713.6,2713.4,0.3684]
[1727457142246,0.36839,2713.5,2713.4,0.3684]
[1727457142534,0.36838,2713.6,2713.4,0.3684]
[1727457142841,1.14968,2713.7,2713.5,0.36839]
[1727457143138,0.36838,2713.6,2713.4,0.3684]
[1727457143441,0.36841,2713.4,2713.3,3.5765]
[1727457143742,1.70224,2713.7,2713.5,0.36839]
[1727457143743,1.14968,2713.7,2713.5,0.36839]
[1727457144131,0.75528,2713.7,2713.6,0.36838]
[1727457144334,0.75528,2713.7,2713.5,0.36839]
[1727457144738,0.36838,2713.6,2713.4,0.3684]
[1727457145133,0.36838,2713.6,2713.5,0.36839]
[1727457145327,0.75527,2713.7,2713.3,3.5765]
[1727457145539,4.50384,2714.0,2713.3,3.5765]
[1727457145734,0.36836,2713.8,2713.3,3.5765]
[1727457146131,0.36836,2713.8,2713.6,0.36837]
[1727457146533,0.3888,2713.9,2713.6,0.36837]
[1727457146534,0.36837,2713.7,2713.6,0.36837]
[1727457146842,0.75714,2713.9,2713.7,0.36835]
[1727457147137,0.75715,2713.9,2713.7,0.36835]
[1727457147538,0.36837,2713.7,2713.5,0.77008]
[1727457149145,0.36838,2713.6,2713.4,3.2484]
[1727457149446,0.9209,2713.8,2713.4,0.3684]
[1727457149641,0.36839,2713.6,2713.4,0.36841]
[1727457150337,0.36839,2713.5,2713.4,0.36841]
[1727457151039,0.36838,2713.7,2713.5,0.36839]
[1727457151542,0.36838,2713.7,2713.6,0.36838]
[1727457151741,0.36838,2713.7,2713.5,0.36838]
[1727457152046,0.36838,2713.6,2713.5,0.36839]
[1727457153241,0.36838,2713.6,2713.4,0.3684]
[1727457153441,0.36839,2713.6,2713.4,0.3684]
[1727457153945,0.36839,2713.5,2713.4,0.3684]
[1727457154142,0.36839,2713.5,2713.3,3.5765]
[1727457154345,0.36839,2713.6,2713.4,0.3684]
[1727457154542,0.36839,2713.5,2713.4,0.3684]
[1727457155646,0.36839,2713.6,2713.5,0.36839]
[1727457155852,0.3888,2713.9,2713.4,2.88]
[1727457156145,0.36836,2713.8,2713.7,0.36836]
[1727457156442,0.3888,2713.9,2713.7,0.36836]
[1727457156651,0.75715,2713.9,2713.8,0.36835]
[1727457156847,0.36835,2713.8,2713.7,0.36836]
[1727457157147,0.36837,2713.7,2713.6,0.36837]
[1727457157447,0.36837,2713.8,2713.6,0.36837]
[1727457157646,0.75714,2713.9,2713.4,2.88]
[1727457157836,0.75714,2713.9,2713.8,0.36835]
[1727457158034,0.36836,2713.8,2713.7,0.36836]
[1727457158445,0.36836,2713.8,2713.6,0.36837]
[1727457158844,0.3888,2713.9,2713.6,0.36837]
[1727457158845,0.36837,2713.7,2713.6,0.36837]
[1727457159041,0.36838,2713.6,2713.5,0.36839]
[1727457160443,0.36839,2713.5,2713.4,3.2484]
[1727457161141,0.3888,2713.9,2713.4,6.5656]
[1727457161351,0.36837,2713.7,2713.6,0.36837]
[1727457161650,0.36838,2713.6,2713.5,0.36839]
[1727457162151,0.36838,2713.6,2713.4,2.88]
[1727457162152,0.36839,2713.5,2713.3,3.2078]
[1727457162454,0.36841,2713.4,2713.3,3.2078]
[1727457162654,0.36843,2713.3,2713.2,0.36843]
[1727457162947,0.36843,2713.2,2713.1,0.7775]
[1727457163149,1.32233,2713.4,2713.1,0.3855]
[1727457163346,0.36843,2713.2,2713.1,0.3855]
[1727457163755,0.36843,2713.2,2713.0,3.24845]
[1727457164145,0.36843,2713.2,2713.1,0.36845]
[1727457164744,0.36843,2713.2,2713.0,3.24845]
[1727457165146,0.75883,2713.3,2713.1,0.36845]
[1727457165346,0.36843,2713.2,2713.0,0.36845]
[1727457165549,0.36844,2713.2,2713.0,0.36846]
[1727457165754,0.75883,2713.3,2713.1,0.36844]
[1727457166053,0.36844,2713.2,2713.0,0.36846]
[1727457167251,0.36845,2713.1,2712.9,6.45627]
[1727457167453,0.3904,2713.3,2712.9,3.57627]
[1727457167748,0.36844,2713.2,2712.9,3.57627]
[1727457167947,0.75883,2713.3,2713.1,0.36844]
[1727457168155,0.3904,2713.3,2713.1,0.36844]
[1727457168765,0.75882,2713.3,2713.1,0.36844]
[1727457169255,0.75882,2713.3,2713.0,0.36845]
[1727457169461,0.36844,2713.2,2712.9,6.45627]
[1727457169883,0.36845,2713.1,2712.9,6.45627]
[1727457170049,0.36844,2713.2,2713.0,0.36846]
[1727457170859,0.36846,2713.1,2712.9,6.45627]
[1727457171059,0.75883,2713.3,2713.1,0.36844]
[1727457171755,0.36844,2713.2,2713.0,0.36846]
[1727457171957,0.75883,2713.3,2713.1,0.36844]
[1727457172265,0.36844,2713.2,2712.9,6.45627]
[1727457172458,0.36844,2713.2,2712.9,6.0878]
[1727457172762,0.36844,2713.2,2713.0,0.36846]
[1727457172957,0.3904,2713.3,2712.9,6.0878]
[1727457173164,0.76971,2713.4,2713.1,0.36843]
[1727457173359,0.36842,2713.3,2713.0,0.36845]
[1727457174860,0.36845,2713.1,2712.9,6.45627]
[1727457177169,0.36846,2713.0,2712.9,6.0878]
[1727457178465,0.4013,2713.4,2712.9,9.7742]
[1727457178663,0.92088,2713.9,2713.2,3.2078]
[1727457178863,0.36836,2713.8,2713.6,0.36837]
[1727457179069,1.31278,2713.9,2713.7,3.24837]
[1727457179070,0.76025,2713.9,2713.7,3.24837]
[1727457179466,0.36835,2713.8,2713.7,3.24837]
[1727457179666,0.36835,2713.8,2713.7,2.88]
[1727457179969,0.76024,2713.9,2713.8,0.36835]
[1727457180169,0.36834,2713.9,2713.8,0.36835]
[1727457180560,0.36834,2713.9,2713.7,3.24836]
[1727457181068,0.3748,2714.1,2713.9,0.36833]
[1727457181271,0.3683,2714.2,2713.9,3.24833]
[1727457181566,0.3939,2714.4,2713.9,3.24833]
[1727457181567,0.36833,2714.0,2713.9,2.88]
[1727457181770,0.3683,2714.3,2714.0,0.36832]
[1727457181967,0.7687,2714.4,2713.9,2.88]
[1727457182268,0.36833,2714.0,2713.8,3.2811]
[1727457182765,0.36834,2713.9,2713.8,3.2811]
[1727457182970,0.36834,2713.9,2713.6,3.24838]
[1727457183368,0.36835,2713.8,2713.6,3.24838]
[1727457184266,0.92075,2714.2,2713.7,0.36836]
[1727457184267,0.36835,2713.9,2713.7,0.36836]
[1727457184473,0.36835,2713.9,2713.6,2.88]
[1727457184674,0.36835,2713.9,2713.7,0.36836]
[1727457184983,0.36835,2713.9,2713.8,0.36835]
[1727457185179,0.36835,2713.9,2713.7,0.75086]
[1727457185475,3.80075,2714.2,2713.5,3.6018]
[1727457185777,0.36837,2713.7,2713.5,3.97019]
[1727457186277,0.36838,2713.6,2713.5,3.97019]
[1727457186473,0.36838,2713.6,2713.5,3.6018]
[1727457186781,4.05398,2713.6,2713.5,3.2078]
[1727457187477,4.05398,2713.6,2713.1,3.24844]
[1727457187478,0.36843,2713.3,2713.1,3.24844]
[1727457187675,0.92099,2713.5,2713.1,3.24844]
[1727457187871,0.36843,2713.3,2713.2,0.36843]
[1727457188081,0.36843,2713.3,2713.2,3.57623]
[1727457188467,1.28949,2713.3,2713.2,3.2078]
[1727457188669,0.36845,2713.1,2712.9,0.36846]
[1727457188874,4.12879,2713.5,2712.8,0.36848]
[1727457188875,1.70391,2713.2,2712.8,0.36848]
[1727457189081,0.36848,2712.9,2712.8,0.36848]
[1727457189465,0.36849,2712.8,2712.7,2.88]
[1727457189669,0.36849,2712.8,2712.6,0.77101]
[1727457189872,0.3685,2712.7,2712.6,0.4025]
[1727457190179,0.3764,2713.1,2712.5,3.2078]
[1727457190180,0.36852,2712.6,2712.5,3.2078]
[1727457190581,0.3775,2712.7,2712.2,6.8584]
[1727457190878,0.36856,2712.3,2712.2,6.4658]
[1727457191183,0.36856,2712.3,2712.2,0.378]
[1727457191479,1.3051,2712.6,2712.2,0.74657]
[1727457191480,0.36855,2712.4,2712.2,0.74657]
[1727457191779,0.36856,2712.3,2712.2,0.378]
[1727457191976,0.36857,2712.2,2712.1,3.2078]
[1727457192772,0.36857,2712.2,2711.8,3.258]
[1727457192773,0.36861,2711.9,2711.8,3.258]
[1727457193980,0.74671,2712.0,2711.8,3.62662]
[1727457194286,0.36861,2711.9,2711.8,3.258]
[1727457194680,0.36861,2711.9,2711.8,0.378]
[1727457194876,0.3781,2712.0,2711.8,0.74662]
[1727457194877,0.7467,2712.0,2711.8,0.74662]
[1727457195783,0.36861,2711.9,2711.8,0.378]
[1727457195986,0.3781,2712.0,2711.6,6.0878]
[1727457196288,0.36861,2711.9,2711.7,0.36863]
[1727457196779,0.3781,2712.0,2711.6,6.45645]
[1727457196780,0.36863,2711.8,2711.6,6.45645]
[1727457197084,0.36862,2711.9,2711.7,0.36864]
[1727457198987,0.7837,2712.0,2711.6,6.45645]
[1727457199186,0.36863,2711.8,2711.6,3.24865]
[1727457199486,0.75582,2711.9,2711.7,0.36864]
[1727457199687,0.3872,2711.9,2711.6,2.88]
[1727457199988,0.75582,2711.9,2711.7,0.36863]
[1727457201982,0.75582,2711.9,2711.6,3.24864]
[1727457202177,0.75582,2711.9,2711.6,2.88]
[1727457202686,0.75582,2711.9,2711.7,0.36864]
[1727457203791,0.3872,2711.9,2711.5,0.3742]
[1727457203982,0.75582,2711.9,2711.6,0.36864]
[1727457204284,0.36864,2711.7,2711.5,0.74286]
[1727457204493,0.36864,2711.7,2711.5,0.3742]
[1727457204991,0.3872,2711.9,2711.5,0.3742]
[1727457205384,0.3872,2711.9,2711.6,0.36864]
[1727457205588,0.36865,2711.7,2711.4,0.36867]
[1727457205782,0.36865,2711.7,2711.5,0.36866]
[1727457206093,0.36864,2711.7,2711.5,0.36866]
[1727457206790,0.36864,2711.7,2711.3,6.0878]
[1727457206986,0.36865,2711.6,2711.4,0.36867]
[1727457207884,0.36867,2711.5,2711.2,0.3687]
[1727457208086,0.92165,2711.6,2711.1,3.2679]
[1727457208289,0.3687,2711.3,2711.1,3.63662]
[1727457210287,0.3887,2711.5,2711.1,3.2679]
[1727457210689,0.75737,2711.5,2711.3,0.36869]
[1727457210993,2.20858,2711.8,2711.3,3.24868]
[1727457211196,0.36872,2711.1,2711.0,3.2078]
[1727457211392,0.92172,2711.4,2710.9,0.4009]
[1727457211393,7.00952,2711.4,2710.9,0.4009]
[1727457211593,0.36872,2711.1,2710.9,0.76964]
[1727457212293,0.36872,2711.2,2711.0,0.36873]
[1727457212491,3.2078,2711.4,2710.9,3.2809]
[1727457212787,3.2078,2711.4,2711.3,0.36869]
[1727457213389,3.2078,2711.4,2710.6,3.2078]
[1727457213390,15.7758,2711.4,2710.6,3.2078]
[1727457213588,0.92174,2711.3,2710.8,0.36876]
[1727457213798,0.36874,2711.0,2710.8,0.36876]
[1727457213996,0.36874,2711.0,2710.7,0.36877]
[1727457214295,0.36875,2710.9,2710.6,3.2078]
[1727457214490,0.36874,2711.0,2710.7,0.36877]
[1727457215189,0.36874,2711.0,2710.6,3.57658]
[1727457215391,0.36874,2711.0,2710.7,0.36877]
[1727457215698,0.36874,2711.0,2710.6,0.36878]
[1727457215996,0.36874,2711.0,2710.4,0.388]
[1727457215997,0.36879,2710.6,2710.4,0.388]
[1727457216382,0.3688,2710.5,2710.4,0.388]
[1727457218294,1.28756,2710.7,2710.4,0.388]
[1727457218495,0.3688,2710.5,2710.4,0.388]
[1727457219393,0.36883,2710.4,2710.2,3.2078]
[1727457219593,0.36883,2710.4,2710.2,3.57664]
[1727457219790,0.3688,2710.5,2710.2,3.57664]
[1727457219997,0.36882,2710.4,2710.2,3.57664]
[1727457221001,0.36881,2710.5,2710.2,3.2078]
[1727457221200,0.36881,2710.5,2710.3,0.36883]
[1727457221498,3.24882,2710.4,2710.2,3.2078]
[1727457221802,0.92199,2710.6,2710.3,0.36883]
[1727457221803,3.2488,2710.6,2710.3,0.36883]
[1727457222396,0.3688,2710.5,2710.3,0.36883]
[1727457222896,0.36881,2710.5,2710.2,3.57664]
[1727457223094,0.36882,2710.4,2710.2,3.57664]
[1727457223301,0.36881,2710.5,2710.3,0.36883]
[1727457224001,2.88,2710.6,2710.2,3.2078]
[1727457224302,0.36881,2710.5,2710.2,3.57663]
[1727457224498,0.36881,2710.5,2710.2,3.2078]
[1727457224694,2.88,2710.6,2710.2,3.2078]
[1727457224897,0.36877,2710.8,2710.5,0.36879]
[1727457225107,3.6138,2710.9,2710.6,0.3814]
[1727457225304,0.77476,2710.9,2710.7,0.36877]
[1727457225603,0.77476,2710.9,2710.6,0.75018]
[1727457225802,0.406,2710.9,2710.7,0.36877]
[1727457226003,0.36874,2711.0,2710.7,0.36877]
[1727457226205,4.5563,2711.1,2710.6,0.3814]
[1727457226206,3.2683,2711.1,2710.6,0.3814]
[1727457226505,0.36874,2711.0,2710.7,0.36876]
[1727457227100,1.30956,2711.3,2710.7,0.36876]
[1727457227101,0.3687,2711.3,2711.0,0.36872]
[1727457227405,0.92168,2711.5,2711.1,0.36872]
[1727457228104,0.3687,2711.3,2711.0,0.36872]
[1727457228494,6.0878,2711.6,2710.9,0.3709]
[1727457228699,5.2765,2711.7,2711.0,0.4029]
[1727457228700,4.8879,2711.7,2711.0,0.4029]
[1727457228914,0.36865,2711.6,2711.4,0.36867]
[1727457230904,0.36867,2711.5,2711.3,0.36868]
[1727457231106,4.8879,2711.7,2711.4,0.36868]
[1727457231107,0.36866,2711.6,2711.4,0.36868]
[1727457231404,1.68151,2711.7,2711.3,0.36868]
[1727457231405,0.36867,2711.5,2711.3,0.36868]
[1727457231611,0.36869,2711.3,2711.2,0.3691]
[1727457231909,0.36869,2711.3,2711.1,3.2078]
[1727457231910,0.36871,2711.2,2711.1,3.2078]
[1727457233010,0.73841,2711.2,2711.1,3.2078]
[1727457234009,1.30061,2711.4,2711.1,3.2078]
[1727457234010,2.88,2711.4,2711.1,3.2078]
[1727457234201,0.92169,2711.5,2711.1,3.2078]
[1727457234411,0.3687,2711.3,2711.1,3.2078]
[1727457234614,0.3687,2711.3,2711.1,3.57652]
[1727457235707,0.36874,2711.0,2710.8,0.3767]
[1727457235906,0.36875,2710.9,2710.8,0.3767]
[1727457236700,0.36876,2710.8,2710.7,3.2078]
[1727457236903,0.36876,2710.8,2710.2,4.14304846]
[1727457236904,0.36881,2710.5,2710.2,4.14304846]
[1727457237102,2.88,2710.6,2710.2,3.97084]
[1727457237305,0.92184,2711.0,2710.6,0.36879]
[1727457237500,0.36877,2710.8,2710.4,3.2078]
[1727457237710,0.92184,2711.0,2710.4,3.57661]
[1727457237711,0.36878,2710.7,2710.4,3.57661]
[1727457238414,0.3688,2710.6,2710.4,3.2078]
[1727457238713,0.7595,2710.6,2710.4,3.2078]
[1727457239314,0.3688,2710.5,2710.4,3.2078]
[1727457240907,0.7595,2710.6,2710.4,3.2078]
[1727457241618,0.3688,2710.5,2710.4,3.2078]
[1727457241915,0.3907,2710.6,2710.4,3.2078]
[1727457243008,0.75949,2710.6,2710.4,3.2078]
[1727457244411,0.3907,2710.6,2710.4,3.5766]
[1727457244613,0.3907,2710.6,2710.4,3.2078]
[1727457244812,0.75949,2710.6,2710.3,0.36882]
[1727457245013,0.75949,2710.6,2710.2,0.3942]
[1727457245014,0.3907,2710.6,2710.2,0.3942]
[1727457245406,0.7595,2710.6,2710.2,0.76303]
[1727457245613,0.3907,2710.6,2710.2,0.3942]
[1727457245809,1.15211,2710.5,2710.2,0.76304]
[1727457246010,0.36882,2710.4,2710.2,0.3942]
[1727457246211,0.7833,2710.5,2709.7,1.30414846]
[1727457246212,0.36887,2710.0,2709.7,1.30414846]
[1727457246415,0.36887,2710.0,2709.7,0.7479]
[1727457246822,7.00988,2710.3,2709.7,0.379]
[1727457247016,0.92216,2710.1,2709.7,0.379]
[1727457247214,3.80216,2710.1,2709.7,0.74791]
[1727457247426,0.4044,2710.0,2709.7,0.74791]
[1727457247613,0.36889,2709.9,2709.7,0.74791]
[1727457248730,0.77327,2710.0,2709.8,0.36889]
[1727457249022,5.83332,2710.5,2709.8,0.36889]
[1727457249023,7.92982,2711.1,2709.9,6.8982]
[1727457249224,0.36874,2711.0,2710.8,0.36875]
[1727457249434,0.92185,2711.0,2710.7,0.3699]
[1727457249616,0.36874,2711.0,2710.7,0.73867]
[1727457249823,7.2538,2711.4,2710.7,0.3699]
[1727457250027,0.77308,2711.4,2711.1,3.57651]
[1727457250829,0.36871,2711.2,2711.1,3.2078]
[1727457251023,0.36871,2711.2,2710.9,0.36873]
[1727457251024,0.92174,2711.3,2710.9,3.2078]
[1727457251225,0.92174,2711.3,2710.8,0.36875]
[1727457251226,0.36872,2711.1,2710.8,0.36875]
[1727457251939,0.36873,2711.0,2710.8,0.36875]
[1727457252341,0.36873,2711.0,2710.7,0.73867]
[1727457252533,0.36875,2710.9,2710.7,0.73867]
[1727457253233,0.36875,2710.9,2710.7,0.3699]
[1727457253441,0.36875,2710.9,2710.7,0.73867]
[1727457253643,0.92182,2711.1,2710.7,0.73867]
[1727457253644,0.36872,2711.2,2710.9,0.36874]
[1727457253844,0.807,2711.3,2710.9,0.36874]
[1727457254041,0.807,2711.3,2710.7,0.3699]
[1727457254238,0.807,2711.3,2711.0,0.36873]
[1727457254239,0.36871,2711.2,2711.0,0.36873]
[1727457255535,0.36871,2711.2,2710.9,0.36873]
[1727457256141,0.36872,2711.1,2710.9,0.36873]
[1727457257345,0.807,2711.3,2710.7,0.3699]
[1727457257548,3.24873,2711.1,2710.8,0.36875]
[1727457257752,3.24873,2711.1,2710.8,0.36876]
[1727457257948,0.36873,2711.1,2710.9,0.36875]
[1727457258344,3.2078,2711.2,2710.8,0.36875]
[1727457259049,0.36873,2711.0,2710.8,0.36875]
[1727457259251,0.36873,2711.1,2710.7,0.3699]
[1727457259450,0.36873,2711.1,2710.8,0.36875]
[1727457259651,0.36874,2711.0,2710.8,0.36875]
[1727457260445,0.36874,2711.0,2710.7,0.73866]
[1727457260646,3.2078,2711.2,2710.7,0.3699]
[1727457260849,0.36873,2711.1,2710.8,0.36875]
[1727457261048,3.2078,2711.2,2710.8,0.36875]
[1727457261250,0.36874,2711.0,2710.8,0.36876]
[1727457261454,0.36874,2711.0,2710.7,0.73867]
[1727457261953,2.88,2711.1,2710.7,0.3699]
[1727457262158,0.92184,2711.0,2710.7,0.3699]
[1727457262357,2.88,2710.9,2710.5,0.93524846]
[1727457262550,0.36879,2710.6,2710.4,1.67055846]
[1727457262751,0.3688,2710.5,2710.4,0.3665]
[1727457263059,0.36882,2710.4,2710.2,0.36884]
[1727457263355,0.36882,2710.4,2710.2,0.73534]
[1727457263656,0.36881,2710.5,2710.3,0.36883]
[1727457263868,0.36882,2710.4,2710.2,0.73534]
[1727457264160,0.36883,2710.3,2710.2,0.3665]
[1727457264354,0.36883,2710.3,2709.9,5.37415269]
[1727457264355,4.9956,2710.3,2709.9,0.93524846]
[1727457264560,2.88,2710.2,2709.8,0.3665]
[1727457264750,0.36888,2709.9,2709.8,0.3665]
[1727457268864,0.36889,2709.9,2709.6,3.57672]
[1727457269064,0.36889,2709.9,2709.6,3.2078]
[1727457269667,0.3689,2709.8,2709.6,3.2078]
[1727457270166,0.36889,2709.9,2709.6,3.2078]
[1727457270356,0.3689,2709.8,2709.6,3.2078]
[1727457272462,2.88,2710.0,2709.6,3.2078]
[1727457272463,0.36891,2709.7,2709.6,3.2078]
[1727457273066,0.36892,2709.6,2709.5,0.3956]
[1727457273268,0.36892,2709.7,2709.5,0.3956]
[1727457273570,3.2484,2709.8,2709.5,0.3956]
[1727457273767,0.36891,2709.7,2709.5,0.3956]
[1727457274073,0.36891,2709.7,2709.5,0.76454]
[1727457274767,0.36891,2709.7,2709.5,0.3956]
[1727457275562,0.36891,2709.7,2709.5,0.76454]
[1727457278059,0.73731,2709.8,2709.6,0.36892]
[1727457278362,4.31324462,2710.5,2709.8,0.92225]
[1727457278363,4.128,2710.5,2709.8,0.92225]
[1727457278562,0.3986,2710.8,2710.2,3.2078]
[1727457278773,3.80188,2710.9,2710.2,3.2078]
[1727457278774,0.36876,2710.9,2710.7,0.36877]
[1727457279069,0.36876,2710.8,2710.6,0.36878]